bitfinex-derivatives/quotes_ETHF0:USTF0_20260203
["timestamp","ask_amount","ask_price","bid_price","bid_amount"]
[1770141166377,0.22663,2208.8,2208.3,51.03417159]
[1770141166572,0.22663,2208.8,2208.1,43.0104248]
[1770141166768,4.536,2209.5,2208.3,2.54965434]
[1770141167073,4.536,2209.5,2208.1,45.8274248]
[1770141167074,0.22662,2208.8,2208.1,45.8384248]
[1770141167473,0.22662,2208.8,2208.2,13.5752]
[1770141167874,4.536,2209.5,2208.4,16.12485434]
[1770141168074,0.22663,2208.8,2208.3,43.0104248]
[1770141168268,4.53925143,2209.6,2208.0,2.54965434]
[1770141168269,0.22664,2208.7,2208.2,2.85]
[1770141168580,0.22664,2208.7,2208.1,45.8644248]
[1770141168778,0.22664,2208.7,2208.1,59.4396248]
[1770141168970,0.22664,2208.7,2208.2,45.56007914]
[1770141169174,0.2266,2209.1,2208.2,2.54965434]
[1770141169377,4.536,2209.5,2208.4,2.54965434]
[1770141169682,0.22659,2209.1,2208.4,2.54965434]
[1770141169880,0.22661,2209.0,2208.4,2.54965434]
[1770141170076,4.536,2209.5,2208.5,43.0104248]
[1770141170274,8.97106131,2209.4,2208.0,5.41165434]
[1770141170480,4.43506131,2209.3,2208.1,42.5551748]
[1770141170676,0.22662,2208.9,2208.1,42.5551748]
[1770141171082,0.22662,2208.9,2208.4,16.12732957]
[1770141171281,0.22662,2208.9,2208.2,2.886]
[1770141171479,0.22662,2208.9,2208.2,13.5752]
[1770141171685,0.22662,2208.9,2208.3,13.5752]
[1770141171882,0.22662,2208.9,2208.3,56.1303748]
[1770141172582,0.22662,2208.9,2208.2,2.888]
[1770141172783,39.30339002,2209.3,2208.3,42.5551748]
[1770141172981,0.22662,2208.9,2208.3,45.10730437]
[1770141173480,4.46547233,2208.8,2208.3,58.68250437]
[1770141173785,0.22662,2208.9,2208.3,58.68250437]
[1770141173978,4.4655108,2208.8,2208.3,56.1303748]
[1770141174181,4.47626632,2208.7,2208.4,16.12691749]
[1770141174482,0.22662,2208.8,2208.3,56.1303748]
[1770141174680,4.47599809,2208.7,2208.3,42.5551748]
[1770141174882,4.47599809,2208.6,2208.2,2.55171749]
[1770141175080,0.22662,2208.8,2208.5,2.55171749]
[1770141175277,39.53001002,2208.8,2208.5,16.12691749]
[1770141175476,4.48812009,2208.7,2208.5,2.55171749]
[1770141175686,4.17262009,2208.6,2208.1,2.949]
[1770141175886,39.53001002,2208.8,2208.3,10.16979611]
[1770141176282,39.30339002,2208.5,2208.2,42.5551748]
[1770141176483,39.30339002,2208.5,2208.0,2.964]
[1770141176688,39.30339002,2208.5,2208.2,10.16979611]
[1770141177285,5.240452,2208.3,2208.2,35.75348987]
[1770141177688,5.240452,2208.3,2208.2,45.92328598]
[1770141177890,5.05405471,2208.7,2208.3,2.48529339]
[1770141178090,1.28438591,2208.4,2208.3,2.989]
[1770141178289,2.61688074,2208.8,2207.9,0.00128552]
[1770141178490,9.53119828,2208.6,2208.0,2.657]
[1770141178892,9.53119828,2208.6,2207.9,0.00128552]
[1770141178893,2.39026074,2208.6,2207.9,0.00128552]
[1770141179090,2.39026074,2208.6,2207.1,2.657]
[1770141179490,2.39026074,2208.3,2206.5,2.70434166]
[1770141179693,0.22672,2207.9,2206.6,6.617]
[1770141179993,0.2302432,2207.9,2206.7,2.992]
[1770141180195,0.2302432,2207.9,2206.8,2.33156239]
[1770141180591,0.2302432,2207.9,2206.6,3.625]
[1770141180592,0.2302432,2207.9,2207.0,2.33156239]
[1770141180786,0.2302432,2207.9,2206.4,2.70434166]
[1770141180787,2.39026074,2207.8,2206.4,2.33156239]
[1770141180991,0.0035232,2207.9,2206.6,2.55841239]
[1770141181192,2.39026074,2208.6,2207.8,51.03417159]
[1770141181391,2.39026074,2208.6,2207.5,2.33156239]
[1770141181392,2.61691074,2208.6,2207.6,2.99]
[1770141181691,0.22665,2208.6,2207.8,2.33156239]
[1770141181888,2.39026074,2209.0,2207.8,2.33156239]
[1770141182095,0.22662,2208.8,2207.8,2.33508559]
[1770141182390,2.39507908,2209.0,2207.8,0.0035232]
[1770141182391,2.61691074,2208.6,2207.8,0.0035232]
[1770141182894,0.22666,2208.5,2207.8,0.0035232]
[1770141184295,2.39026074,2208.5,2207.8,0.0035232]
[1770141184495,0.2267,2208.1,2207.2,2.33156239]
[1770141185092,0.22665,2208.5,2207.2,2.33156239]
[1770141185294,0.22666,2208.4,2207.2,2.33156239]
[1770141185489,2.39026074,2208.5,2207.2,2.33156239]
[1770141185490,0.22669,2208.2,2207.2,2.33156239]
[1770141185686,0.22669,2208.2,2207.3,2.33156239]
[1770141186197,0.22665,2208.6,2207.3,2.33156239]
[1770141186995,2.61691074,2208.6,2207.4,5.31856239]
[1770141187191,2.39026074,2208.6,2207.5,2.33156239]
[1770141187396,0.22667,2208.3,2207.5,2.33156239]
[1770141187590,2.61697074,2208.0,2206.8,2.33156239]
[1770141187795,2.39026074,2208.0,2206.8,2.33156239]
[1770141187994,0.22677,2207.4,2206.5,2.33156239]
[1770141188197,0.00578924,2207.4,2206.5,2.33156239]
[1770141190892,0.22678,2207.3,2206.5,2.33156239]
[1770141191092,0.00578924,2207.4,2206.2,2.33156239]
[1770141191093,2.39604998,2207.4,2206.2,2.33156239]
[1770141191600,2.62281998,2207.4,2206.2,2.33156239]
[1770141191795,0.23255924,2207.4,2206.2,2.33156239]
[1770141191992,0.00578924,2207.4,2206.2,2.33156239]
[1770141192597,0.00578924,2207.4,2206.4,2.33156239]
[1770141193398,0.22678,2207.3,2206.4,2.33156239]
[1770141193993,0.00578924,2207.4,2206.4,2.33156239]
[1770141196399,0.00578924,2207.4,2207.3,49.81345711]
[1770141196598,0.00578924,2207.4,2207.3,49.76288151]
[1770141196794,0.23255924,2207.4,2207.3,37.19701696]
[1770141196999,6.64116265,2208.0,2207.3,38.97352445]
[1770141197198,0.22673,2207.8,2207.3,2.55171749]
[1770141197901,0.22668,2208.3,2207.3,2.55171749]
[1770141198104,0.23106809,2208.3,2207.3,2.55698404]
[1770141198298,5.28879269,2208.3,2207.3,2.55698404]
[1770141198600,0.22675,2207.6,2207.3,0.00526655]
[1770141198898,5.5111046,2208.1,2207.0,2.53235361]
[1770141199203,0.22671,2208.0,2207.0,2.53235361]
[1770141199401,0.22672,2207.9,2207.0,2.53235361]
[1770141199603,0.22673,2207.8,2207.0,2.53235361]
[1770141199801,5.2844046,2208.0,2207.0,2.53235361]
[1770141200297,0.22675,2207.6,2207.0,2.53235361]
[1770141200496,5.2844046,2208.0,2207.0,2.53235361]
[1770141200904,0.22672,2207.9,2207.0,2.53235361]
[1770141201802,5.28879269,2208.3,2207.0,2.53235361]
[1770141202002,0.00438809,2208.3,2207.0,2.53235361]
[1770141202898,0.2267,2208.1,2207.0,2.53235361]
[1770141203506,5.5110446,2208.7,2207.2,2.48100967]
[1770141203899,0.22665,2208.5,2207.2,2.48100967]
[1770141204205,2.86948195,2208.5,2207.2,2.48100967]
[1770141204609,2.64755938,2208.5,2207.2,2.48592045]
[1770141205207,2.64755938,2208.5,2207.3,2.48100967]
[1770141205905,0.00472743,2208.5,2207.3,2.48100967]
[1770141206510,2.86946195,2208.7,2207.3,2.70778967]
[1770141207099,2.64283195,2208.7,2207.3,2.70778967]
[1770141207304,2.64283195,2208.9,2207.7,2.48100967]
[1770141207499,2.64627598,2208.9,2207.7,2.48100967]
[1770141207901,5.2844046,2209.3,2208.1,2.48100967]
[1770141208105,39.65909532,2209.2,2208.1,2.48100967]
[1770141208301,39.65909532,2209.4,2208.1,2.48100967]
[1770141208504,42.0776445,2209.7,2208.4,2.48100967]
[1770141208704,39.65909532,2209.5,2208.4,2.48100967]
[1770141208912,6.64116265,2209.8,2208.4,2.48100967]
[1770141208913,39.65909532,2209.8,2208.4,2.48100967]
[1770141209204,0.0038015,2209.5,2208.4,4.16332118]
[1770141209411,9.73144432,2209.9,2208.8,1.68231151]
[1770141209610,9.73144432,2209.9,2208.9,2.48100967]
[1770141210310,9.73672937,2209.9,2208.9,2.48489494]
[1770141212207,9.73672937,2209.9,2209.4,38.90281663]
[1770141212409,39.65909532,2210.5,2209.5,2.48100967]
[1770141212712,42.3040845,2210.6,2209.5,2.48100967]
[1770141213113,42.3040845,2210.6,2208.3,5.0023014]
[1770141213114,0.22646,2210.4,2207.9,1.9855414]
[1770141213303,39.88573532,2208.7,2207.6,2.55157387]
[1770141213501,39.65909532,2208.5,2207.6,2.55157387]
[1770141213704,3.5255032,2208.9,2207.6,2.55157387]
[1770141213905,2.41854918,2209.0,2207.6,2.55157387]
[1770141214106,2.41854918,2208.7,2207.6,2.55714352]
[1770141214303,2.64521918,2208.3,2207.6,2.55714352]
[1770141214512,0.00344899,2209.0,2207.6,0.33050659]
[1770141214513,2.41854918,2208.0,2207.6,0.33050659]
[1770141215508,3.625,2208.7,2207.6,0.33050659]
[1770141215509,2.43139904,2208.6,2207.6,0.33050659]
[1770141216809,2.43484803,2209.0,2207.6,2.98850659]
[1770141218320,2.64523918,2208.2,2207.6,0.00556965]
[1770141218517,2.41854918,2208.0,2207.6,0.00556965]
[1770141218715,2.41854918,2208.1,2206.7,0.30027039]
[1770141219622,2.41854918,2208.1,2206.7,0.30491565]
[1770141219816,2.64524918,2208.1,2206.7,0.30491565]
[1770141220015,2.41854918,2207.8,2206.7,0.30491565]
[1770141220524,0.22672,2207.9,2206.7,0.30491565]
[1770141222125,2.64526918,2207.9,2206.7,0.30491565]
[1770141222525,2.41854918,2207.9,2206.7,0.30491565]
[1770141223815,2.41854918,2208.2,2206.7,0.00464526]
[1770141225522,2.41854918,2207.7,2206.7,0.00464526]
[1770141227129,2.41854918,2208.0,2206.7,0.32186234]
[1770141229123,2.41854918,2207.6,2206.7,0.00464526]
[1770141230420,2.40332047,2208.0,2206.7,0.3005035]
[1770141232424,2.63003047,2208.0,2206.7,0.00464526]
[1770141232927,2.40332047,2208.0,2206.7,0.3005035]
[1770141234531,2.40332047,2208.0,2206.8,0.50000378]
[1770141235428,2.40332047,2208.0,2206.9,0.27221013]
[1770141238326,2.40332047,2208.0,2206.7,0.00464526]
[1770141238732,2.40332047,2208.0,2206.7,0.48306596]
[1770141239534,2.40332047,2208.0,2206.9,0.25121622]
[1770141239828,2.40332047,2208.0,2206.9,4.10403622]
[1770141240038,2.45927672,2208.4,2207.1,0.47800622]
[1770141240635,2.45927672,2208.4,2207.2,0.25121622]
[1770141240833,2.45927672,2208.4,2207.1,0.22679]
[1770141241035,2.45927672,2208.2,2207.0,2.933]
[1770141241628,2.45927672,2208.2,2207.1,0.47103053]
[1770141242126,0.00344899,2209.0,2208.3,0.22666]
[1770141242326,2.45927672,2209.5,2207.8,4.52402404]
[1770141242532,2.45927672,2209.5,2207.9,0.24079154]
[1770141242729,2.45927672,2209.5,2208.3,0.22667]
[1770141242926,2.45927672,2209.5,2208.3,0.46746154]
[1770141243129,2.45927672,2209.5,2208.5,0.23242995]
[1770141243334,5.27627052,2210.4,2208.9,2.52281561]
[1770141243527,5.27627052,2210.5,2208.6,6.14881561]
[1770141243726,39.96002107,2210.1,2208.6,3.626]
[1770141243931,39.73353107,2210.0,2208.7,2.52281561]
[1770141244236,2.45927672,2210.1,2208.7,2.52281561]
[1770141244435,0.00494166,2210.0,2208.7,2.52281561]
[1770141245438,2.45927672,2209.9,2208.7,2.52281561]
[1770141245637,2.45927672,2209.9,2208.6,3.626]
[1770141245935,2.45927672,2209.7,2208.6,6.14881561]
[1770141246134,2.45927672,2209.7,2208.7,2.52281561]
[1770141246326,0.00494166,2210.0,2208.7,2.52281561]
[1770141246327,2.46421838,2210.0,2208.7,2.52281561]
[1770141247134,0.00494166,2210.0,2209.0,2.52281561]
[1770141247335,2.45927672,2210.3,2209.0,2.52281561]
[1770141248435,0.00347505,2210.3,2209.0,2.52281561]
[1770141248734,0.00347505,2210.3,2209.0,2.74941561]
[1770141249129,2.45927672,2210.2,2209.0,2.74941561]
[1770141249536,0.00347505,2210.3,2209.0,2.74941561]
[1770141249731,0.22642,2210.8,2209.0,2.74941561]
[1770141249936,40.09108299,2211.0,2209.0,2.74941561]
[1770141250131,5.27627052,2211.2,2209.0,2.74941561]
[1770141250642,0.22642,2210.8,2209.0,2.74941561]
[1770141251533,2.45927672,2210.7,2209.0,2.74941561]
[1770141251734,2.45927672,2210.7,2209.4,2.52281561]
[1770141251938,2.45927672,2210.7,2209.5,2.52281561]
[1770141252237,2.45927672,2211.0,2209.7,2.52281561]
[1770141252437,0.00442326,2211.2,2209.7,2.5276628]
[1770141252931,0.00442326,2211.2,2210.3,2.52281561]
[1770141253134,2.45927672,2212.6,2210.6,2.74925561]
[1770141253334,3.624,2212.8,2210.7,2.52281561]
[1770141253335,2.45927672,2212.1,2210.7,2.52281561]
[1770141253535,3.624,2212.8,2210.1,2.52281561]
[1770141253536,2.45927672,2211.8,2210.1,2.52281561]
[1770141253837,2.45927672,2211.5,2210.1,2.52281561]
[1770141254137,2.46434867,2211.5,2210.1,2.52281561]
[1770141254939,2.45927672,2211.3,2210.1,2.52281561]
[1770141256137,2.46434867,2211.5,2210.1,2.74929561]
[1770141256641,2.46434867,2211.5,2210.1,2.52281561]
[1770141257336,0.00507195,2211.5,2210.1,2.52281561]
[1770141257537,2.45927672,2212.6,2211.4,2.52281561]
[1770141257734,2.45927672,2212.6,2211.6,2.52281561]
[1770141258037,2.45927672,2212.6,2211.3,9.07181561]
[1770141258438,2.46287425,2212.6,2211.3,9.07502187]
[1770141258634,2.46287425,2212.6,2211.3,6.77856626]
[1770141258838,2.46287425,2212.6,2211.4,2.74916561]
[1770141259038,2.46287425,2212.6,2211.6,2.52281561]
[1770141259439,0.00359753,2212.6,2211.6,2.52281561]
[1770141259635,2.46287425,2212.6,2211.3,9.07502187]
[1770141259842,2.45927672,2212.4,2211.3,3.62620626]
[1770141260537,2.68553672,2212.4,2211.3,3.62620626]
[1770141260740,2.23048359,2212.0,2210.6,5.30863158]
[1770141261042,2.23048359,2212.0,2210.7,2.38363158]
[1770141261238,2.23048359,2212.0,2209.5,4.0565125]
[1770141261239,2.23048359,2211.7,2209.7,0.22653]
[1770141261436,2.23048359,2211.7,2210.0,2.38363158]
[1770141261642,2.31941663,2210.7,2207.2,0.22679]
[1770141261841,2.31941663,2210.1,2207.5,2.655]
[1770141262037,2.31941663,2210.1,2207.5,3.89690372]
[1770141262239,2.31941663,2209.4,2207.4,2.1]
[1770141263237,2.31941663,2209.4,2207.1,1.41756237]
[1770141263439,3.98451725,2209.8,2207.1,0.96556237]
[1770141263440,2.31941663,2209.2,2207.1,0.96556237]
[1770141263637,2.54600663,2209.2,2207.2,2.38363158]
[1770141264238,2.54600663,2209.2,2207.2,2.38768242]
[1770141265540,2.54600663,2209.2,2207.2,1.93568242]
[1770141266040,2.31941663,2209.2,2207.2,1.93568242]
[1770141266443,2.54600663,2209.2,2207.2,1.93568242]
[1770141266641,2.31941663,2209.0,2207.2,1.93568242]
[1770141266941,2.32465423,2209.0,2207.2,1.93568242]
[1770141267534,2.31941663,2208.7,2207.2,0.00405084]
[1770141267735,2.31941663,2208.1,2206.0,2.38363158]
[1770141267942,2.31941663,2207.9,2206.1,2.38363158]
[1770141268742,2.31941663,2207.9,2206.1,2.38712819]
[1770141269938,2.31941663,2207.7,2206.1,2.38712819]
[1770141270147,2.54615663,2207.7,2206.1,2.38712819]
[1770141271344,2.31941663,2207.7,2206.1,2.38712819]
[1770141271947,2.54612663,2207.7,2206.1,2.38712819]
[1770141272247,2.31941663,2207.7,2206.1,2.38712819]
[1770141275543,0.0052376,2209.0,2206.4,2.38363158]
[1770141275544,2.31941663,2208.2,2206.4,2.38363158]
[1770141276544,2.31941663,2208.0,2206.6,2.38363158]
[1770141277746,2.31941663,2208.0,2206.2,2.38363158]
[1770141277945,2.31941663,2207.8,2206.2,2.38363158]
[1770141278450,2.54611663,2207.8,2206.2,2.38363158]
[1770141278749,2.31941663,2207.8,2206.4,2.38363158]
[1770141279144,2.31941663,2207.8,2206.4,2.61047158]
[1770141279350,2.54608663,2208.1,2206.4,2.61047158]
[1770141280252,2.54608663,2208.1,2206.6,2.38363158]
[1770141280754,2.31941663,2208.1,2206.6,2.38363158]
[1770141280950,2.31941663,2208.1,2206.9,2.38363158]
[1770141281155,2.31941663,2208.1,2206.6,8.66763158]
[1770141281655,2.31941663,2208.1,2206.7,2.38363158]
[1770141283954,2.31941663,2207.7,2206.7,2.38363158]
[1770141284255,2.31941663,2207.7,2206.4,2.61047158]
[1770141285052,2.31941663,2207.7,2206.4,2.38363158]
[1770141285254,2.31941663,2208.0,2206.6,2.38363158]
[1770141288259,2.31941663,2208.0,2206.1,0.00349661]
[1770141288260,2.31941663,2206.9,2206.1,0.00349661]
[1770141288459,0.00390685,2206.9,2206.1,2.38712819]
[1770141288760,2.31941663,2207.5,2206.1,2.38712819]
[1770141289859,2.32486457,2207.5,2206.1,2.38712819]
[1770141291155,2.32486457,2207.5,2206.1,5.0470961]
[1770141291351,2.32486457,2207.5,2206.2,2.53740202]
[1770141292959,2.55159457,2207.5,2206.2,2.53740202]
[1770141293561,2.55159457,2207.5,2206.3,2.30967659]
[1770141296155,2.55159457,2207.5,2206.3,9.10758167]
[1770141296361,2.55159457,2207.5,2206.3,2.65996791]
[1770141296860,2.55159457,2207.5,2206.2,9.71690739]
[1770141297264,2.55159457,2207.5,2206.3,6.83399519]
[1770141297763,2.72173062,2207.1,2206.2,2.919]
[1770141299862,2.50040856,2207.5,2206.4,2.30967659]
[1770141300064,2.50040856,2207.5,2206.4,5.0228305]
[1770141300263,0.00544794,2207.5,2206.5,2.53651659]
[1770141300565,2.49496062,2208.1,2207.1,2.30967659]
[1770141300759,39.96420018,2207.3,2206.0,5.37678872]
[1770141300959,39.96420018,2207.6,2206.1,2.55559922]
[1770141301165,0.22679,2207.0,2206.1,0.00349661]
[1770141301367,2.6610844,2206.7,2206.1,0.00349661]
[1770141301559,2.6610844,2206.9,2206.1,2.55559922]
[1770141302062,2.66672048,2207.0,2206.1,2.55559922]
[1770141302459,2.6610844,2206.9,2206.1,0.00349661]
[1770141302663,2.8879144,2206.6,2205.4,2.55210261]
[1770141302856,2.6610844,2206.2,2205.4,2.55210261]
[1770141303062,2.6610844,2206.1,2205.4,2.55210261]
[1770141303261,2.6610844,2206.2,2205.4,2.55210261]
[1770141303662,2.6610844,2206.2,2204.6,2.659]
[1770141303663,2.6610844,2205.9,2204.6,2.659]
[1770141303862,2.6610844,2205.8,2204.6,2.659]
[1770141304260,2.6610844,2205.9,2204.6,2.659]
[1770141304560,2.6610844,2206.0,2204.6,2.659]
[1770141304759,2.6610844,2205.9,2204.6,2.66339439]
[1770141305265,0.35405524,2206.4,2202.8,1.92455937]
[1770141305266,39.96420018,2204.7,2202.8,1.92455937]
[1770141305565,39.96420018,2204.7,2201.8,5.85265416]
[1770141305566,1.1196338,2204.6,2203.5,0.25691866]
[1770141305860,1.1196338,2204.6,2202.9,0.01028962]
[1770141305861,2.64837891,2204.5,2202.9,0.07896528]
[1770141306069,2.64837891,2204.3,2203.2,2.41147426]
[1770141306266,0.44598764,2204.4,2203.2,2.41147426]
[1770141306464,0.2812567,2204.1,2202.5,2.41147426]
[1770141306662,2.92963561,2203.9,2202.5,2.41147426]
[1770141306963,2.49496062,2203.7,2202.4,2.41050345]
[1770141307168,6.25638153,2203.6,2202.4,2.41050345]
[1770141307468,3.94432553,2203.6,2202.4,2.41050345]
[1770141307772,2.49496062,2203.4,2202.3,1e-08]
[1770141308066,5.13153067,2203.3,2202.3,2.41050346]
[1770141308264,2.64837891,2203.9,2202.4,4.53520001]
[1770141308458,2.49496062,2203.8,2202.6,1.92455937]
[1770141308663,1.61423049,2203.2,2202.5,2.41050345]
[1770141308864,2.49496062,2203.5,2202.5,2.41050345]
[1770141309872,2.49496062,2203.2,2202.3,1e-08]
[1770141310067,0.95481307,2203.4,2202.3,1e-08]
[1770141310264,0.65944735,2203.1,2202.3,1e-08]
[1770141310662,3.61465424,2203.4,2202.3,1e-08]
[1770141310865,0.65944735,2203.2,2202.3,1e-08]
[1770141311072,2.49496062,2203.2,2202.3,1e-08]
[1770141311365,0.82429048,2203.1,2202.3,1e-08]
[1770141311868,0.82429048,2203.1,2202.3,4.53520002]
[1770141312264,0.82429048,2203.1,2202.5,2.30967659]
[1770141312473,2.49496062,2203.9,2202.8,4.53520001]
[1770141312767,3.12010988,2203.8,2202.6,2.30967659]
[1770141312964,3.12010988,2203.8,2202.7,2.30967659]
[1770141313371,3.12010988,2203.8,2202.7,6.8448766]
[1770141313671,3.12010988,2203.8,2202.3,1e-08]
[1770141313672,0.62514926,2203.8,2203.0,4.53520001]
[1770141313874,0.62514926,2203.8,2202.9,2.30967659]
[1770141314071,0.62514926,2203.8,2203.0,4.53520001]
[1770141314269,2.72209062,2203.7,2202.3,1e-08]
[1770141314572,0.16482816,2204.1,2202.7,2.30967659]
[1770141314770,0.00465648,2204.5,2203.4,2.30967659]
[1770141315072,12.0001917,2205.3,2203.9,2.30967659]
[1770141315268,2.49496062,2205.2,2203.9,2.30967659]
[1770141315469,2.49496062,2204.1,2202.3,2.30967659]
[1770141315665,2.49496062,2204.0,2202.3,2.30967659]
[1770141315973,2.63053615,2204.0,2202.5,2.30967659]
[1770141316174,2.63053615,2204.0,2202.6,2.30967659]
[1770141316374,2.63053615,2204.0,2202.7,2.30967659]
[1770141316574,2.63053615,2204.0,2202.4,2.30967659]
[1770141316771,2.63053615,2204.0,2202.6,2.30967659]
[1770141317077,2.85763615,2204.0,2202.7,2.30967659]
[1770141317275,2.85763615,2204.0,2202.8,2.30967659]
[1770141317468,2.85763615,2204.0,2202.8,6.84022012]
[1770141317673,0.13557553,2204.0,2203.2,2.30967659]
[1770141317872,2.63053615,2204.0,2202.9,2.82391731]
[1770141318071,2.63053615,2204.0,2203.0,4.53054353]
[1770141318267,2.63053615,2204.0,2203.0,6.84022012]
[1770141318476,2.63053615,2204.0,2203.0,2.30967659]
[1770141318677,2.63053615,2204.0,2202.7,2.30967659]
[1770141319176,2.63053615,2204.0,2202.4,2.30967659]
[1770141319583,2.63053615,2204.0,2202.5,2.30967659]
[1770141319776,2.85763615,2204.0,2202.7,2.30967659]
[1770141320177,2.85763615,2204.0,2202.7,6.84022012]
[1770141320377,2.49496062,2203.8,2202.7,2.30967659]
[1770141320776,2.49496062,2203.8,2202.9,4.53054353]
[1770141320983,0.00488832,2204.0,2202.9,2.3384698]
[1770141321185,0.00488832,2204.0,2203.4,6.86901333]
[1770141321387,2.44673414,2204.4,2203.9,4.53054353]
[1770141321680,2.44673414,2204.8,2203.5,2.3384698]
[1770141321886,2.44673414,2204.8,2203.7,2.3384698]
[1770141322288,2.67375414,2204.8,2203.1,2.3384698]
[1770141322487,2.67901581,2204.8,2203.2,2.3384698]
[1770141322689,2.44673414,2204.6,2203.2,2.3384698]
[1770141322891,2.44673414,2204.6,2203.4,4.53054353]
[1770141323082,0.00526167,2204.8,2203.7,2.3384698]
[1770141323391,0.00526167,2204.8,2204.1,2.3384698]
[1770141323790,0.00526167,2204.8,2204.3,4.53054353]
[1770141324287,0.00526167,2204.8,2201.2,0.3669738]
[1770141324288,2.44673414,2205.6,2204.5,2.3384698]
[1770141324687,2.67366414,2205.6,2204.1,2.3384698]
[1770141324882,2.44673414,2204.3,2202.2,5.33253859]
[1770141325088,2.44673414,2205.0,2203.2,2.3384698]
[1770141325287,2.45153932,2205.0,2203.7,2.3384698]
[1770141325686,0.00480518,2205.0,2203.9,2.3384698]
[1770141325891,0.00480518,2205.0,2204.1,2.3384698]
[1770141326285,0.00480518,2205.0,2204.3,4.53054353]
[1770141326587,0.00480518,2205.0,2203.8,2.3384698]
[1770141326588,2.67852932,2205.0,2203.8,2.3384698]
[1770141326989,2.67852932,2205.0,2203.9,2.3384698]
[1770141327187,0.00480518,2205.0,2204.1,2.3384698]
[1770141327592,0.00480518,2205.0,2204.5,4.53054353]
[1770141327991,0.00480518,2205.0,2204.7,4.53054353]
[1770141328193,2.44673414,2205.3,2204.7,0.00445509]
[1770141329091,2.44673414,2205.1,2203.1,2.3384698]
[1770141329298,2.59078505,2205.5,2204.6,2.3384698]
[1770141329490,2.44673414,2206.0,2204.9,2.3384698]
[1770141329895,2.44673414,2206.0,2205.1,4.53054353]
[1770141330092,2.45022642,2206.0,2205.1,0.00507291]
[1770141330696,2.45022642,2206.0,2205.1,4.53561644]
[1770141331298,2.45022642,2206.0,2204.5,2.3384698]
[1770141331299,2.44673414,2205.8,2204.5,2.3384698]
[1770141331691,2.44673414,2205.8,2204.7,6.86901333]
[1770141331997,2.44673414,2205.8,2204.7,2.3384698]
[1770141332199,2.44673414,2205.8,2204.9,4.53054353]
[1770141332397,2.44673414,2205.8,2204.9,4.53491829]
[1770141332597,2.44673414,2205.8,2204.9,0.00437476]
[1770141332792,2.44673414,2205.3,2204.1,2.3384698]
[1770141332992,2.44673414,2205.2,2204.1,2.3384698]
[1770141333596,2.44673414,2205.1,2203.4,2.3384698]
[1770141333795,2.44673414,2205.1,2203.6,2.3384698]
[1770141333992,2.44673414,2205.1,2203.6,4.53054353]
[1770141334198,2.44673414,2205.1,2203.7,6.86901333]
[1770141334398,2.44673414,2205.0,2203.7,2.3384698]
[1770141334596,2.44673414,2204.0,2203.4,0.00575985]
[1770141334801,2.44673414,2204.0,2201.8,14.73069241]
[1770141334802,2.59078505,2204.0,2202.9,2.3384698]
[1770141335100,0.49452939,2203.9,2203.1,2.3384698]
[1770141335797,2.94540774,2203.9,2203.1,0.00432268]
[1770141337296,2.44673414,2203.1,2201.6,2.3384698]
[1770141337493,2.59078505,2203.3,2201.6,2.3384698]
[1770141337701,2.59078505,2203.3,2201.4,1.92455937]
[1770141337702,1.81385076,2203.0,2202.1,2.3384698]
[1770141338002,0.16467096,2203.2,2202.7,6.86901333]
[1770141338200,0.16492547,2203.3,2202.7,2.3384698]
[1770141338401,2.44673414,2203.7,2202.7,0.00340093]
[1770141339000,2.82203926,2203.9,2202.8,6.86901333]
[1770141339201,2.82203926,2203.9,2202.8,2.3384698]
[1770141339202,2.67798835,2203.9,2202.8,2.3384698]
[1770141339502,5.03751919,2203.8,2202.7,0.00340093]
[1770141339799,2.44673414,2203.7,2202.7,2.34187073]
[1770141340002,0.00414421,2203.9,2202.9,4.53054353]
[1770141340202,0.00414421,2203.9,2202.8,2.3384698]
[1770141340203,2.45087835,2203.9,2203.0,4.53054353]
[1770141340398,2.44673414,2203.6,2202.7,0.00340093]
[1770141340605,2.44673414,2203.6,2202.0,2.3384698]
[1770141340801,41.30851002,2203.6,2202.0,2.3384698]
[1770141340997,0.87610674,2203.5,2202.0,2.3384698]
[1770141341198,2.45087835,2203.9,2202.2,2.3384698]
[1770141341596,0.21656957,2203.6,2202.2,2.34275793]
[1770141341996,0.21656957,2203.6,2202.4,2.3384698]
[1770141342204,2.45087835,2203.9,2202.4,2.3384698]
[1770141342407,41.31265423,2203.9,2202.4,2.3384698]
[1770141342704,2.44673414,2203.7,2202.4,2.3384698]
[1770141344702,38.86592009,2203.9,2202.2,0.00428813]
[1770141344703,38.86177588,2202.8,2202.2,0.00428813]
[1770141344900,7.94852289,2203.4,2202.2,0.00428813]
[1770141344901,2.44673414,2203.5,2202.2,2.34275793]
[1770141345101,2.44673414,2203.4,2202.2,2.34275793]
[1770141345307,2.67391414,2203.2,2202.2,2.34275793]
[1770141346012,2.67388414,2203.5,2202.2,5.97575793]
[1770141346202,2.67388414,2203.5,2202.3,2.3384698]
[1770141346405,0.21656957,2203.3,2202.3,2.3384698]
[1770141347811,2.44673414,2203.1,2202.2,0.00428813]
[1770141348208,0.32976858,2203.0,2202.2,0.00428813]
[1770141349206,2.44673414,2202.8,2202.2,0.00428813]
[1770141349402,2.67397414,2202.6,2201.1,2.3384698]
[1770141349810,0.16500787,2202.5,2201.4,2.3384698]
[1770141350005,2.44673414,2202.6,2201.4,2.3384698]
[1770141350314,2.85543708,2202.5,2201.5,5.9714698]
[1770141350513,2.3615518,2202.4,2201.5,5.9714698]
[1770141350715,2.85543708,2202.5,2201.4,2.52232615]
[1770141350913,2.5887818,2202.7,2201.5,9.06934415]
[1770141351116,0.16499289,2202.6,2201.6,5.43634415]
[1770141351413,2.3615518,2202.6,2201.6,2.51834415]
[1770141351815,4.88702559,2202.5,2201.6,6.15134415]
[1770141352216,2.3615518,2202.4,2201.4,2.52232615]
[1770141352616,0.65995656,2202.3,2201.4,2.52232615]
[1770141352811,0.66505783,2202.3,2201.4,2.52232615]
[1770141353223,38.86177588,2203.3,2201.6,0.22734]
[1770141353416,0.22719,2203.1,2201.4,2.52232615]
[1770141353618,1.5355839,2202.9,2201.5,6.298]
[1770141353917,1.5355839,2202.9,2201.5,7.049235]
[1770141354213,1.53993396,2202.9,2202.1,0.22729]
[1770141354412,38.86177588,2203.9,2202.2,2.3294432]
[1770141354612,0.22714,2203.5,2202.2,2.3294432]
[1770141355018,0.22714,2203.5,2202.3,8.6274432]
[1770141355220,2.70691697,2203.5,2202.3,8.6274432]
[1770141355412,2.71143212,2203.5,2202.3,8.6274432]
[1770141355611,0.00451515,2203.5,2202.4,2.3294432]
[1770141355813,0.00451515,2203.5,2202.4,3.17394451]
[1770141356017,0.00451515,2203.5,2202.5,2.3294432]
[1770141356219,2.48429212,2203.5,2202.5,2.3294432]
[1770141356624,0.00451515,2203.5,2202.6,2.92608865]
[1770141356921,2.47977697,2203.8,2202.7,2.3294432]
[1770141357317,2.47977697,2203.8,2202.8,6.298]
[1770141357512,2.47977697,2204.1,2202.9,2.3294432]